fUSD/lending_fUSD_20241223
["ID","MTS","AMOUNT","RATE_DAILY","PERIOD"]
[346420423,1734954660500,-500.0,0.00019452,2]
[346420424,1734954660510,-620.83586324,0.00019452,2]
[346420425,1734954660519,-500.0,0.00019452,2]
[346420426,1734954660529,-812.31,0.00019452,2]
[346420427,1734954660538,-510.63,0.00019452,2]
[346420428,1734954660548,-500.0,0.00019452,2]
[346420429,1734954660557,-500.0,0.00019452,2]
[346420430,1734954660566,-500.0,0.00019452,2]
[346420431,1734954660575,-625.46,0.00019452,2]
[346420432,1734954660584,-500.0,0.00019452,2]
[346420433,1734954660593,-500.0,0.00019452,2]
[346420434,1734954660602,-500.0,0.00019452,2]
[346420435,1734954660611,-500.0,0.00019452,2]
[346420436,1734954660621,-500.0,0.00019452,2]
[346420437,1734954660630,-500.0,0.00019452,2]
[346420438,1734954660639,-500.0,0.00019452,2]
[346420439,1734954660648,-500.0,0.00019452,2]
[346420440,1734954660657,-500.0,0.00019452,2]
[346420441,1734954660666,-500.0,0.00019452,2]
[346420442,1734954660675,-546.71404462,0.00019452,2]
[346420443,1734954660684,-500.0,0.00019452,2]
[346420444,1734954660694,-500.0,0.00019452,2]
[346420445,1734954660703,-500.0,0.00019452,2]
[346420446,1734954660712,-500.0,0.00019452,2]
[346420447,1734954660721,-500.0,0.00019452,2]
[346420448,1734954660732,-748.45,0.00019452,2]
[346420449,1734954660741,-829.76,0.00019452,2]
[346420450,1734954661043,-500.0,0.00019452,2]
[346420451,1734954661056,-500.0,0.00019452,2]
[346420452,1734954661066,-500.0,0.00019452,2]
[346420453,1734954661075,-505.21991502,0.00019452,2]
[346420454,1734954661085,-500.0,0.00019452,2]
[346420455,1734954661095,-509.06350003,0.00019452,2]
[346420456,1734954661104,-855.21,0.00019452,2]
[346420457,1734954661113,-1661.27,0.00019452,2]
[346420458,1734954661123,-500.0,0.00019452,2]
[346420459,1734954661131,-500.0,0.00019452,2]
[346420460,1734954661140,-500.0,0.00019452,2]
[346420461,1734954661149,-500.0,0.00019452,2]
[346420462,1734954661158,-500.0,0.00019452,2]
[346420463,1734954661167,-739.76,0.00019452,2]
[346420464,1734954661176,-238.3480895,0.00019452,2]
[346420465,1734954661185,-500.0,0.00019452,2]
[346420466,1734954661194,-500.0,0.00019452,2]
[346420467,1734954661203,-717.95,0.00019452,2]
[346420468,1734954661212,-500.0,0.00019452,2]
[346420469,1734954661222,-500.0,0.00019452,2]
[346420470,1734954661233,-500.0,0.00019452,2]
[346420471,1734954661242,-500.0,0.00019452,2]
[346420472,1734954661252,-500.0,0.00019452,2]
[346420473,1734954661262,-637.87654902,0.00019452,2]
[346420474,1734954661271,-500.0,0.00019452,2]
[346420475,1734954661280,-765.65,0.00019452,2]
[346420476,1734954661290,-500.0,0.00019452,2]
[346420477,1734954661300,-500.0,0.00019452,2]
[346420478,1734954661310,-3373.32,0.00019452,2]
[346420479,1734954661319,-500.0,0.00019452,2]
[346420480,1734954661329,-544.15,0.00019452,2]
[346420481,1734954661338,-620.58,0.00019452,2]
[346420482,1734954661348,-500.0,0.00019452,2]
[346420483,1734954661358,-500.0,0.00019452,2]
[346420484,1734954661367,-500.0,0.00019452,2]
[346420485,1734954661376,-500.0,0.00019452,2]
[346420486,1734954661386,-2667.16,0.00019452,2]
[346420487,1734954661395,-1964.87,0.00019452,2]
[346420488,1734954661405,-500.0,0.00019452,2]
[346420489,1734954661415,-500.0,0.00019452,2]
[346420490,1734954661424,-767.12,0.00019452,2]
[346420491,1734954661435,-500.0,0.00019452,2]
[346420492,1734954661444,-319.65774042,0.00019452,2]
[346420493,1734954661453,-500.0,0.00019452,2]
[346420494,1734954661462,-500.0,0.00019452,2]
[346420495,1734954661472,-536.29,0.00019452,2]
[346420496,1734954661483,-3304.33,0.00019452,2]
[346420497,1734954661493,-753.54,0.00019452,2]
[346420498,1734954661503,-500.0,0.00019452,2]
[346420499,1734954661512,-540.67,0.00019452,2]
[346420500,1734954661521,-524.4,0.00019452,2]
[346420501,1734954661531,-1162.37,0.00019452,2]
[346420502,1734954661540,-500.0,0.00019452,2]
[346420503,1734954661549,-998.09,0.00019452,2]
[346420504,1734954661559,-628.85,0.00019452,2]
[346420505,1734954661568,-439.76145004,0.00019452,2]
[346420506,1734954661577,-1754.63,0.00019452,2]
[346420507,1734954661586,-500.0,0.00019452,2]
[346420508,1734954661595,-500.0,0.00019452,2]
[346420509,1734954661604,-1079.7,0.00019452,2]
[346420510,1734954661614,-937.39,0.00019452,2]
[346420511,1734954661623,-500.0,0.00019452,2]
[346420512,1734954661632,-500.0,0.00019452,2]
[346420513,1734954661642,-500.0,0.00019452,2]
[346420514,1734954661651,-1055.72,0.00019452,2]
[346420515,1734954661662,-500.0,0.00019452,2]
[346420516,1734954661671,-500.0,0.00019452,2]
[346420517,1734954661681,-500.0,0.00019452,2]
[346420518,1734954661692,-500.0,0.00019452,2]
[346420519,1734954661701,-2019.8,0.00019452,2]
[346420520,1734954661711,-500.0,0.00019452,2]
[346420521,1734954661720,-1226.96,0.00019452,2]
[346420522,1734954661735,-746.45,0.00019452,2]
[346420523,1734954661746,-500.0,0.00019452,2]
[346420524,1734954661755,-511.7312456,0.00019452,2]
[346420525,1734954661765,-500.0,0.00019452,2]
[346420526,1734954661774,-880.72,0.00019452,2]
[346420527,1734954661784,-500.0,0.00019452,2]
[346420528,1734954661794,-500.0,0.00019452,2]
[346420529,1734954661804,-500.0,0.00019452,2]
[346420530,1734954661814,-1193.19,0.00019452,2]
[346420531,1734954661823,-2559.53,0.00019452,2]
[346420532,1734954661832,-1034.12,0.00019452,2]
[346420533,1734954661841,-500.0,0.00019452,2]
[346420534,1734954661850,-500.0,0.00019452,2]
[346420535,1734954661859,-500.0,0.00019452,2]
[346420536,1734954661869,-500.0,0.00019452,2]
[346420537,1734954661878,-500.0,0.00019452,2]
[346420538,1734954661887,-641.11,0.00019452,2]
[346420539,1734954661896,-500.0,0.00019452,2]
[346420540,1734954661905,-500.0,0.00019452,2]
[346420541,1734954661914,-500.0,0.00019452,2]
[346420542,1734954661924,-1274.12,0.00019452,2]
[346420543,1734954661933,-500.0,0.00019452,2]
[346420544,1734954661943,-500.0,0.00019452,2]
[346420545,1734954661952,-500.0,0.00019452,2]
[346420546,1734954661962,-1687.34,0.00019452,2]
[346420547,1734954661971,-500.0,0.00019452,2]
[346420548,1734954661983,-500.0,0.00019452,2]
[346420549,1734954661993,-727.66,0.00019452,2]
[346420550,1734954662003,-500.0,0.00019452,2]
[346420551,1734954662017,-500.0,0.00019452,2]
[346420552,1734954662026,-500.0,0.00019452,2]
[346420553,1734954662035,-2352.52,0.00019452,2]
[346420554,1734954662045,-1815.52,0.00019452,2]
[346420555,1734954662055,-500.0,0.00019452,2]
[346420556,1734954662064,-760.46,0.00019452,2]
[346420557,1734954662074,-500.0,0.00019452,2]
[346420558,1734954662083,-500.0,0.00019452,2]
[346420559,1734954662094,-500.0,0.00019452,2]
[346420560,1734954662104,-500.0,0.00019452,2]
[346420561,1734954662113,-500.0,0.00019452,2]
[346420562,1734954662123,-831.58,0.00019452,2]
[346420563,1734954662132,-500.0,0.00019452,2]
[346420564,1734954662141,-775.47,0.00019452,2]
[346420565,1734954662151,-878.37,0.00019452,2]
[346420566,1734954662160,-1059.0,0.00019452,2]
[346420567,1734954662170,-500.0,0.00019452,2]
[346420568,1734954662181,-699.35,0.00019452,2]
[346420569,1734954662190,-562.58,0.00019452,2]
[346420570,1734954662200,-500.0,0.00019452,2]
[346420571,1734954662209,-709.45,0.00019452,2]
[346420572,1734954662219,-1747.23,0.00019452,2]
[346420573,1734954662230,-591.21,0.00019452,2]
[346420574,1734954662242,-1061.01,0.00019452,2]
[346420575,1734954662252,-2307.99,0.00019452,2]
[346420576,1734954662262,-500.0,0.00019452,2]
[346420577,1734954662271,-898.96,0.00019452,2]
[346420578,1734954662282,-3465.4,0.00019452,2]
[346420579,1734954662292,-500.0,0.00019452,2]
[346420580,1734954662301,-2613.69,0.00019452,2]
[346420581,1734954662310,-500.0,0.00019452,2]
[346420582,1734954662320,-500.0,0.00019452,2]
[346420583,1734954662329,-500.0,0.00019452,2]
[346420584,1734954662339,-500.0,0.00019452,2]
[346420585,1734954662348,-500.0,0.00019452,2]
[346420586,1734954662359,-571.7,0.00019452,2]
[346420587,1734954662368,-1063.23,0.00019452,2]
[346420588,1734954662378,-1294.0,0.00019452,2]
[346420589,1734954662388,-500.0,0.00019452,2]
[346420590,1734954662397,-705.88,0.00019452,2]
[346420591,1734954662407,-1168.7,0.00019452,2]
[346420592,1734954662417,-1681.79,0.00019452,2]
[346420593,1734954662426,-500.0,0.00019452,2]
[346420594,1734954662436,-500.0,0.00019452,2]
[346420595,1734954662445,-952.73,0.00019452,2]
[346420596,1734954662455,-1238.72,0.00019452,2]
[346420597,1734954662464,-500.0,0.00019452,2]
[346420598,1734954662473,-500.0,0.00019452,2]
[346420599,1734954662486,-500.0,0.00019452,2]
[346420600,1734954662495,-500.0,0.00019452,2]
[346420601,1734954662505,-500.0,0.00019452,2]
[346420602,1734954662516,-500.0,0.00019452,2]
[346420603,1734954662526,-709.72,0.00019452,2]
[346420604,1734954662534,-2512.69,0.00019452,2]
[346420605,1734954662544,-2366.13,0.00019452,2]
[346420606,1734954662553,-978.68,0.00019452,2]
[346420607,1734954662563,-500.0,0.00019452,2]
[346420608,1734954662572,-1967.55,0.00019452,2]
[346420609,1734954662581,-547.00597955,0.00019452,2]
[346420610,1734954662590,-500.0,0.00019452,2]
[346420611,1734954662599,-1054.2,0.00019452,2]
[346420612,1734954662608,-500.0,0.00019452,2]
[346420613,1734954662617,-500.0,0.00019452,2]
[346420614,1734954662627,-500.0,0.00019452,2]
[346420615,1734954662636,-500.0,0.00019452,2]
[346420616,1734954662645,-500.0,0.00019452,2]
[346420617,1734954662655,-500.0,0.00019452,2]
[346420618,1734954662664,-1268.64,0.00019452,2]
[346420619,1734954662673,-500.0,0.00019452,2]
[346420620,1734954662682,-500.0,0.00019452,2]
[346420621,1734954662692,-500.0,0.00019452,2]
[346420622,1734954662701,-863.59,0.00019452,2]
[346420623,1734954662710,-762.41,0.00019452,2]
[346420624,1734954662719,-699.63,0.00019452,2]
[346420625,1734954662732,-2455.11,0.00019452,2]
[346420626,1734954662741,-1020.53,0.00019452,2]
[346420627,1734954662751,-1238.96,0.00019452,2]
[346420628,1734954662760,-3282.88,0.00019452,2]
[346420629,1734954662769,-500.0,0.00019452,2]
[346420630,1734954662778,-500.0,0.00019452,2]
[346420631,1734954662787,-500.0,0.00019452,2]
[346420632,1734954662797,-500.0,0.00019452,2]
[346420633,1734954662805,-500.0,0.00019452,2]
[346420634,1734954662815,-500.0,0.00019452,2]
[346420635,1734954662824,-500.0,0.00019452,2]
[346420636,1734954662833,-500.0,0.00019452,2]
[346420637,1734954662842,-500.0,0.00019452,2]
[346420638,1734954662851,-629.61,0.00019452,2]
[346420639,1734954662861,-500.0,0.00019452,2]
[346420640,1734954662870,-500.0,0.00019452,2]
[346420641,1734954662880,-1286.62,0.00019452,2]
[346420642,1734954662889,-557.79,0.00019452,2]
[346420643,1734954662898,-500.0,0.00019452,2]
[346420644,1734954662907,-752.34,0.00019452,2]
[346420645,1734954662916,-500.0,0.00019452,2]
[346420646,1734954662925,-621.89,0.00019452,2]
[346420647,1734954662935,-1743.13,0.00019452,2]
[346420648,1734954662944,-169.09501367,0.00019452,2]
[346420649,1734954662953,-500.0,0.00019452,2]
[346420650,1734954662962,-500.0,0.00019452,2]
[346420651,1734954662971,-1747.61,0.00019452,2]
[346420652,1734954662984,-500.0,0.00019452,2]
[346420653,1734954662995,-500.0,0.00019452,2]
[346420654,1734954663005,-500.0,0.00019452,2]
[346420655,1734954663019,-2910.69,0.00019452,2]
[346420656,1734954663029,-1532.32,0.00019452,2]
[346420657,1734954663038,-540.07,0.00019452,2]
[346420658,1734954663047,-500.0,0.00019452,2]
[346420659,1734954663058,-851.81,0.00019452,2]
[346420660,1734954663068,-2503.85,0.00019452,2]
[346420661,1734954663078,-634.5,0.00019452,2]
[346420662,1734954663090,-500.0,0.00019452,2]
[346420663,1734954663099,-716.97,0.00019452,2]
[346420664,1734954663109,-2711.24,0.00019452,2]
[346420665,1734954663120,-500.0,0.00019452,2]
[346420666,1734954663129,-2996.71,0.00019452,2]
[346420667,1734954663138,-500.0,0.00019452,2]
[346420668,1734954663148,-503.25,0.00019452,2]
[346420669,1734954663157,-500.0,0.00019452,2]
[346420670,1734954663167,-580.11227703,0.00019452,2]
[346420671,1734954663176,-3025.42,0.00019452,2]
[346420672,1734954663186,-500.0,0.00019452,2]
[346420673,1734954663196,-500.0,0.00019452,2]
[346420674,1734954663206,-4295.34,0.00019452,2]
[346420675,1734954663216,-500.0,0.00019452,2]
[346420676,1734954663225,-500.0,0.00019452,2]
[346420677,1734954663236,-783.08,0.00019452,2]
[346420678,1734954663246,-500.0,0.00019452,2]
[346420679,1734954663255,-1652.76,0.00019452,2]
[346420680,1734954663264,-500.0,0.00019452,2]
[346420681,1734954663274,-500.0,0.00019452,2]
[346420682,1734954663283,-500.0,0.00019452,2]
[346420683,1734954663293,-500.0,0.00019452,2]
[346420684,1734954663303,-3258.02,0.00019452,2]
[346420685,1734954663312,-500.0,0.00019452,2]
[346420686,1734954663321,-500.0,0.00019452,2]
[346420687,1734954663330,-500.0,0.00019452,2]
[346420688,1734954663340,-709.58,0.00019452,2]
[346420689,1734954663350,-500.0,0.00019452,2]
[346420690,1734954663359,-500.0,0.00019452,2]
[346420691,1734954663369,-500.0,0.00019452,2]
[346420692,1734954663461,-500.0,0.00019452,2]
[346420693,1734954663471,-500.0,0.00019452,2]
[346420694,1734954663480,-501.22,0.00019452,2]
[346420695,1734954663489,-627.91,0.00019452,2]
[346420696,1734954663498,-614.31,0.00019452,2]
[346420697,1734954663508,-500.0,0.00019452,2]
[346420698,1734954663516,-500.0,0.00019452,2]
[346420699,1734954663526,-500.0,0.00019452,2]
[346420700,1734954663535,-500.0,0.00019452,2]
[346420701,1734954663545,-500.0,0.00019452,2]
[346420702,1734954663554,-500.0,0.00019452,2]
[346420703,1734954663563,-1827.04,0.00019452,2]
[346420704,1734954663572,-500.0,0.00019452,2]
[346420705,1734954663581,-500.0,0.00019452,2]
[346420706,1734954663591,-738.79,0.00019452,2]
[346420707,1734954663600,-500.0,0.00019452,2]
[346420708,1734954663609,-787.2,0.00019452,2]
[346420709,1734954663618,-500.0,0.00019452,2]
[346420710,1734954663627,-1161.47,0.00019452,2]
[346420711,1734954663636,-500.0,0.00019452,2]
[346420712,1734954663645,-2932.23,0.00019452,2]
[346420713,1734954663654,-500.0,0.00019452,2]
[346420714,1734954663664,-500.0,0.00019452,2]
[346420715,1734954663673,-500.0,0.00019452,2]
[346420716,1734954663682,-523.13,0.00019452,2]
[346420717,1734954663691,-354.26683218,0.00019452,2]
[346420718,1734954663700,-533.23,0.00019452,2]
[346420719,1734954663710,-500.0,0.00019452,2]
[346420720,1734954663719,-500.0,0.00019452,2]
[346420721,1734954663728,-500.0,0.00019452,2]
[346420722,1734954663738,-1127.68,0.00019452,2]
[346420723,1734954663747,-500.0,0.00019452,2]
[346420724,1734954663757,-654.17,0.00019452,2]
[346420725,1734954663767,-500.0,0.00019452,2]
[346420726,1734954663776,-500.0,0.00019452,2]
[346420727,1734954663786,-500.0,0.00019452,2]
[346420728,1734954663795,-505.80894687,0.00019452,2]
[346420729,1734954663805,-500.0,0.00019452,2]
[346420730,1734954663815,-500.0,0.00019452,2]
[346420731,1734954663824,-500.0,0.00019452,2]
[346420732,1734954663833,-500.0,0.00019452,2]
[346420733,1734954663843,-500.0,0.00019452,2]
[346420734,1734954663852,-572.69,0.00019452,2]
[346420735,1734954663862,-2243.3,0.00019452,2]
[346420736,1734954663871,-2000.0,0.00019452,15]
[346420737,1734954663880,-500.0,0.00019452,2]
[346420738,1734954663890,-500.0,0.00019452,2]
[346420739,1734954663899,-500.0,0.00019452,2]
[346420740,1734954663909,-654.07,0.00019452,2]
[346420741,1734954663918,-500.0,0.00019452,2]
[346420742,1734954663927,-500.0,0.00019452,2]
[346420743,1734954663937,-500.0,0.00019452,2]
[346420744,1734954663946,-500.0,0.00019452,2]
[346420745,1734954663955,-500.0,0.00019452,2]
[346420746,1734954663964,-1356.52,0.00019452,2]
[346420747,1734954663973,-1482.21,0.00019452,2]
[346420748,1734954663985,-904.06,0.00019452,2]
[346420749,1734954663994,-500.0,0.00019452,2]
[346420750,1734954664006,-500.0,0.00019452,2]
[346420751,1734954664017,-500.0,0.00019452,2]
[346420752,1734954664026,-500.0,0.00019452,2]
[346420753,1734954664035,-500.0,0.00019452,2]
[346420754,1734954664045,-651.66,0.00019452,2]
[346420755,1734954664054,-1511.11,0.00019452,2]
[346420756,1734954664063,-500.0,0.00019452,2]
[346420757,1734954664072,-500.0,0.00019452,2]
[346420758,1734954664082,-500.0,0.00019452,2]
[346420759,1734954664091,-500.0,0.00019452,2]
[346420760,1734954664100,-500.0,0.00019452,2]
[346420761,1734954664110,-2174.73,0.00019452,2]
[346420762,1734954664119,-500.0,0.00019452,2]
[346420763,1734954664128,-2079.73,0.00019452,2]
[346420764,1734954664137,-500.0,0.00019452,2]
[346420765,1734954664146,-500.0,0.00019452,2]
[346420766,1734954664155,-500.0,0.00019452,2]
[346420767,1734954664164,-1254.94,0.00019452,2]
[346420768,1734954664173,-500.0,0.00019452,2]
[346420769,1734954664183,-500.0,0.00019452,2]
[346420770,1734954664192,-500.0,0.00019452,2]
[346420771,1734954664201,-2616.08,0.00019452,2]
[346420772,1734954664211,-500.0,0.00019452,2]
[346420773,1734954664220,-500.0,0.00019452,2]
[346420774,1734954664230,-500.0,0.00019452,2]
[346420775,1734954664240,-860.41,0.00019452,2]
[346420776,1734954664250,-500.0,0.00019452,2]
[346420777,1734954664260,-500.0,0.00019452,2]
[346420778,1734954664270,-1500.59,0.00019452,2]
[346420779,1734954664280,-629.95,0.00019452,2]
[346420780,1734954664289,-500.0,0.00019452,2]
[346420781,1734954664299,-1070.86,0.00019452,2]
[346420782,1734954664308,-500.0,0.00019452,2]
[346420783,1734954664318,-500.0,0.00019452,2]
[346420784,1734954664327,-500.0,0.00019452,2]
[346420785,1734954664337,-1634.13,0.00019452,2]
[346420786,1734954664346,-500.0,0.00019452,2]
[346420787,1734954664355,-523.97513942,0.00019452,2]
[346420788,1734954664365,-500.0,0.00019452,2]
[346420789,1734954664374,-500.0,0.00019452,2]
[346420790,1734954664384,-500.0,0.00019452,2]
[346420791,1734954664393,-2025.25,0.00019452,2]
[346420792,1734954664402,-713.76,0.00019452,2]
[346420793,1734954664412,-500.0,0.00019452,2]
[346420794,1734954664421,-1077.27,0.00019452,2]
[346420795,1734954664431,-1214.42,0.00019452,2]
[346420796,1734954664440,-1270.55,0.00019452,2]
[346420797,1734954664450,-500.0,0.00019452,2]
[346420798,1734954664459,-739.02,0.00019452,2]
[346420799,1734954664469,-594.15,0.00019452,2]
[346420800,1734954664478,-887.47,0.00019452,2]
[346420801,1734954664488,-500.0,0.00019452,2]
[346420802,1734954664497,-1539.04,0.00019452,2]
[346420803,1734954664506,-500.0,0.00019452,2]
[346420804,1734954664515,-500.0,0.00019452,2]
[346420805,1734954664524,-2162.05,0.00019452,2]
[346420806,1734954664533,-500.0,0.00019452,2]
[346420807,1734954664542,-500.0,0.00019452,2]
[346420808,1734954664551,-500.0,0.00019452,2]
[346420809,1734954664561,-500.0,0.00019452,2]
[346420810,1734954664570,-1160.65,0.00019452,2]
[346420811,1734954664579,-500.0,0.00019452,2]
[346420812,1734954664588,-500.0,0.00019452,2]
[346420813,1734954664597,-500.0,0.00019452,2]
[346420814,1734954664606,-500.0,0.00019452,2]
[346420815,1734954664615,-500.0,0.00019452,2]
[346420816,1734954664624,-500.0,0.00019452,2]
[346420817,1734954664634,-1323.21,0.00019452,2]
[346420818,1734954664642,-1103.73,0.00019452,2]
[346420819,1734954664651,-500.0,0.00019452,2]
[346420820,1734954664660,-500.0,0.00019452,2]
[346420821,1734954664669,-500.0,0.00019452,2]
[346420822,1734954664678,-500.0,0.00019452,2]
[346420823,1734954664688,-1402.25,0.00019452,2]
[346420824,1734954664697,-500.0,0.00019452,2]
[346420825,1734954664706,-500.0,0.00019452,2]
[346420826,1734954664715,-577.1,0.00019452,2]
[346420827,1734954664724,-894.47,0.00019452,2]
[346420828,1734954664734,-500.0,0.00019452,2]
[346420829,1734954664744,-2736.81,0.00019452,2]
[346420830,1734954664753,-500.0,0.00019452,2]
[346420831,1734954664762,-500.0,0.00019452,2]
[346420832,1734954664771,-2733.86,0.00019452,2]
[346420833,1734954664780,-500.0,0.00019452,2]
[346420834,1734954664789,-508.44304128,0.00019452,2]
[346420835,1734954664798,-500.0,0.00019452,2]
[346420836,1734954664807,-500.0,0.00019452,2]
[346420837,1734954664815,-538.62787254,0.00019452,2]
[346420838,1734954664824,-500.0,0.00019452,2]
[346420839,1734954664834,-500.0,0.00019452,2]
[346420840,1734954664843,-500.0,0.00019452,2]
[346420841,1734954664852,-500.0,0.00019452,2]
[346420842,1734954664861,-500.0,0.00019452,2]
[346420843,1734954664870,-599.2655397,0.00019452,2]
[346420844,1734954664879,-500.0,0.00019452,2]
[346420845,1734954664888,-500.0,0.00019452,2]
[346420846,1734954664897,-500.0,0.00019452,2]
[346420847,1734954664908,-500.0,0.00019452,2]
[346420848,1734954664917,-619.96,0.00019452,2]
[346420849,1734954664925,-1266.58,0.00019452,2]
[346420850,1734954664934,-500.0,0.00019452,2]
[346420851,1734954664943,-990.02,0.00019452,2]
[346420852,1734954664952,-707.22,0.00019452,2]
[346420853,1734954664961,-500.0,0.00019452,2]
[346420854,1734954664970,-500.0,0.00019452,2]
[346420855,1734954664979,-524.66,0.00019452,2]
[346420856,1734954664988,-927.55,0.00019452,2]
[346420857,1734954664997,-500.0,0.00019452,2]
[346420858,1734954665006,-2019.47,0.00019452,2]
[346420859,1734954665018,-500.0,0.00019452,2]
[346420860,1734954665027,-1311.19,0.00019452,2]
[346420861,1734954665036,-500.0,0.00019452,2]
[346420862,1734954665045,-2084.0,0.00019452,2]
[346420863,1734954665055,-500.0,0.00019452,2]
[346420864,1734954665064,-954.94,0.00019452,2]
[346420865,1734954665073,-500.0,0.00019452,2]
[346420866,1734954665082,-500.0,0.00019452,2]
[346420867,1734954665093,-500.0,0.00019452,2]
[346420868,1734954665102,-927.58,0.00019452,2]
[346420869,1734954665111,-500.0,0.00019452,2]
[346420870,1734954665120,-2244.8,0.00019452,2]
[346420871,1734954665129,-2543.76,0.00019452,2]
[346420872,1734954665138,-500.0,0.00019452,2]
[346420873,1734954665147,-500.0,0.00019452,2]
[346420874,1734954665156,-500.0,0.00019452,2]
[346420875,1734954665165,-500.0,0.00019452,2]
[346420876,1734954665174,-3672.84,0.00019452,2]
[346420877,1734954665183,-500.0,0.00019452,2]
[346420878,1734954665192,-784.73,0.00019452,2]
[346420879,1734954665201,-1955.05,0.00019452,2]
[346420880,1734954665210,-500.0,0.00019452,2]
[346420881,1734954665219,-944.26,0.00019452,2]
[346420882,1734954665228,-500.00693924,0.00019452,2]
[346420883,1734954665239,-4474.93,0.00019452,2]
[346420884,1734954665250,-500.0,0.00019452,2]
[346420885,1734954665259,-1136.61,0.00019452,2]
[346420886,1734954665269,-500.0,0.00019452,2]
[346420887,1734954665278,-1037.49,0.00019452,2]
[346420888,1734954665287,-500.0,0.00019452,2]
[346420889,1734954665297,-500.0,0.00019452,2]
[346420890,1734954665306,-1689.31,0.00019452,2]
[346420891,1734954665316,-500.0,0.00019452,2]
[346420892,1734954665325,-356.71284981,0.00019452,2]
[346420893,1734954665334,-500.0,0.00019452,2]
[346420894,1734954665343,-3047.7,0.00019452,2]
[346420895,1734954665352,-500.0,0.00019452,2]
[346420896,1734954665360,-500.0,0.00019452,2]
[346420897,1734954665369,-555.62,0.00019452,2]
[346420898,1734954665378,-501.30707147,0.00019452,2]
[346420899,1734954665387,-500.0,0.00019452,2]
[346420900,1734954665396,-2385.98,0.00019452,2]
[346420901,1734954665405,-1468.19,0.00019452,2]
[346420902,1734954665414,-500.0,0.00019452,2]
[346420903,1734954665423,-500.0,0.00019452,2]
[346420904,1734954665432,-500.0,0.00019452,2]
[346420905,1734954665441,-500.0,0.00019452,2]
[346420906,1734954665450,-1956.0,0.00019452,2]
[346420907,1734954665459,-494.92316378,0.00019452,2]
[346420908,1734954665468,-500.0,0.00019452,2]
[346420909,1734954665477,-1771.1,0.00019452,2]
[346420910,1734954665491,-500.0,0.00019452,2]
[346420911,1734954665500,-713.58,0.00019452,2]
[346420912,1734954665509,-8599.39,0.00019452,2]
[346420913,1734954665518,-1268.41,0.00019452,2]
[346420914,1734954665527,-2922.07,0.00019452,2]
[346420915,1734954665536,-500.0,0.00019452,2]
[346420916,1734954665544,-2255.05,0.00019452,2]
[346420917,1734954665553,-500.0,0.00019452,2]
[346420918,1734954665562,-513.3630191,0.00019452,2]
[346420919,1734954665571,-500.0,0.00019452,2]
[346420920,1734954665580,-689.01,0.00019452,2]
[346420921,1734954665589,-500.0,0.00019452,2]
[346420922,1734954665598,-500.0,0.00019452,2]